bitfinex/quotes_BTCUSD_20241027
["timestamp","ask_amount","ask_price","bid_price","bid_amount"]
[1730002520634,0.27087093,67227.0,67226.0,0.096844]
[1730002522719,0.27078744,67227.0,67226.0,0.096844]
[1730002523368,0.27078744,67227.0,67226.0,0.001644]
[1730002524468,0.18162434,67227.0,67226.0,0.001644]
[1730002525768,0.01705572,67227.0,67226.0,0.001644]
[1730002528617,0.0839022,67227.0,67226.0,0.001644]
[1730002529469,0.08390127,67227.0,67226.0,0.001644]
[1730002530386,0.01705572,67227.0,67226.0,0.001644]
[1730002531637,0.27070144,67227.0,67226.0,0.001644]
[1730002531845,0.41944868,67227.0,67226.0,0.001644]
[1730002532053,0.27069968,67227.0,67226.0,0.001644]
[1730002533571,0.18156742,67227.0,67226.0,0.001644]
[1730002537524,0.29298275,67227.0,67226.0,0.001644]
[1730002538588,0.33031642,67227.0,67226.0,0.001644]
[1730002539071,0.41521642,67227.0,67226.0,0.001644]
[1730002540546,0.89466368,67227.0,67226.0,0.001644]
[1730002540760,0.66312023,67227.0,67226.0,0.001644]
[1730002540940,0.76096528,67227.0,67226.0,0.001644]
[1730002541150,0.76102333,67227.0,67226.0,0.001644]
[1730002541356,0.80655736,67227.0,67226.0,0.001644]
[1730002543340,0.81129061,67227.0,67226.0,0.001644]
[1730002543969,0.97175438,67227.0,67226.0,0.001644]
[1730002544414,0.97375438,67227.0,67226.0,0.001644]
[1730002544642,0.82329061,67227.0,67226.0,0.001644]
[1730002544859,0.97375438,67227.0,67226.0,0.001644]
[1730002545574,0.97374711,67227.0,67226.0,0.001644]
[1730002546885,0.99674711,67227.0,67226.0,0.001644]
[1730002548011,0.84628681,67227.0,67226.0,0.001644]
[1730002549294,0.84628681,67227.0,67220.0,0.001644]
[1730002549295,0.5415531,67221.0,67220.0,0.001644]
[1730002549540,0.80431184,67221.0,67220.0,0.001644]
[1730002549768,0.82608937,67221.0,67220.0,0.001644]
[1730002550214,0.82604304,67221.0,67220.0,0.001644]
[1730002550627,0.78050901,67221.0,67220.0,0.001644]
[1730002551836,0.68266396,67221.0,67220.0,0.001644]
[1730002552045,0.78050901,67221.0,67220.0,0.001644]
[1730002552726,0.91415419,67221.0,67220.0,0.001644]
[1730002556545,0.78050901,67221.0,67220.0,0.001644]
[1730002559231,0.91415419,67221.0,67220.0,0.001644]
[1730002559660,0.78050901,67221.0,67220.0,0.001644]
[1730002571804,0.82589119,67221.0,67220.0,0.001644]
[1730002572505,0.95948359,67221.0,67220.0,0.001644]
[1730002575515,0.82589119,67221.0,67220.0,0.001644]
[1730002576615,0.66150992,67221.0,67220.0,0.001644]
[1730002576823,0.82597873,67221.0,67220.0,0.001644]
[1730002577048,0.72813368,67221.0,67220.0,0.001644]
[1730002577529,0.82597873,67221.0,67220.0,0.001644]
[1730002579091,0.153785,67211.0,67210.0,0.22240179]
[1730002579310,0.88636825,67211.0,67210.0,0.22240179]
[1730002579513,1.04183961,67211.0,67210.0,0.22240179]
[1730002579721,0.1538,67204.0,67203.0,0.001682]
[1730002579950,0.41611386,67204.0,67203.0,0.001682]
[1730002580157,0.43786759,67204.0,67203.0,0.001682]
[1730002580398,0.5883714,67204.0,67203.0,0.001682]
[1730002580610,0.69981301,67204.0,67203.0,0.001682]
[1730002580818,0.5883714,67204.0,67203.0,0.001682]
[1730002584550,0.6812714,67204.0,67203.0,0.001682]
[1730002584765,0.6912714,67204.0,67203.0,0.001682]
[1730002584990,0.8249819,67204.0,67203.0,0.001682]
[1730002585369,0.6912714,67204.0,67203.0,0.001682]
[1730002585625,0.8249819,67204.0,67203.0,0.001682]
[1730002586281,0.6912714,67204.0,67203.0,0.001682]
[1730002588222,0.50052635,67204.0,67203.0,0.001682]
[1730002588438,0.5983714,67204.0,67203.0,0.001682]
[1730002589543,0.7320819,67204.0,67203.0,0.001682]
[1730002590016,0.5983714,67204.0,67203.0,0.001682]
[1730002590698,0.7320819,67204.0,67203.0,0.001682]
[1730002590920,0.5983714,67204.0,67203.0,0.001682]
[1730002593604,0.18622254,67204.0,67203.0,0.001682]
[1730002593856,0.18622254,67204.0,67203.0,0.099082]
[1730002594086,0.18622254,67204.0,67203.0,0.247884]
[1730002594087,0.29766817,67204.0,67203.0,0.247884]
[1730002594315,0.18622254,67204.0,67203.0,0.247884]
[1730002594544,0.18630997,67204.0,67203.0,0.247884]
[1730002594786,0.27546653,67204.0,67203.0,0.247884]
[1730002595012,0.27546653,67204.0,67203.0,0.099082]
[1730002595514,0.27546615,67204.0,67203.0,0.099082]
[1730002596495,0.18630997,67204.0,67203.0,0.099082]
[1730002596709,0.11090951,67204.0,67203.0,0.099082]
[1730002597383,0.18630997,67204.0,67203.0,0.099082]
[1730002597621,0.27546772,67204.0,67203.0,0.247884]
[1730002597851,0.02175373,67204.0,67203.0,0.330184]
[1730002598085,0.0886182,67204.0,67203.0,0.330184]
[1730002599209,0.08861895,67204.0,67203.0,0.330184]
[1730002599661,0.09443393,67204.0,67203.0,0.330184]
[1730002600755,0.02756871,67204.0,67203.0,0.330184]
[1730002609346,0.09443709,67204.0,67203.0,0.330184]
[1730002610549,0.07215455,67204.0,67203.0,0.330184]
[1730002610786,0.02756871,67204.0,67203.0,0.330184]
[1730002611974,0.04458584,67208.0,67207.0,0.246394]
[1730002612178,0.04458584,67208.0,67207.0,0.322294]
[1730002612357,0.07615521,67208.0,67207.0,0.322294]
[1730002612830,0.07615079,67208.0,67207.0,0.322294]
[1730002615294,0.03156937,67208.0,67207.0,0.322294]
[1730002616142,0.03156937,67208.0,67207.0,0.79304465]
[1730002616349,0.03156937,67208.0,67207.0,0.57064286]
[1730002616763,0.04458142,67215.0,67214.0,0.224678]
[1730002616970,0.0761694,67215.0,67214.0,0.322278]
[1730002617427,0.04458142,67216.0,67214.0,0.1735]
[1730002617593,0.04458142,67216.0,67215.0,0.148776]
[1730002618255,0.04458142,67217.0,67214.0,0.471056]
[1730002618448,0.04458142,67217.0,67216.0,0.148774]
[1730002620704,0.07616818,67217.0,67216.0,0.148774]
[1730002621142,0.07613808,67217.0,67216.0,0.148774]
[1730002621774,0.03158676,67217.0,67216.0,0.148774]
[1730002622110,0.04537332,67220.0,67219.0,0.148767]
[1730002622551,0.07711826,67220.0,67219.0,0.148767]
[1730002623461,0.03256694,67220.0,67219.0,0.148767]
[1730002626559,0.03256694,67220.0,67219.0,0.244167]
[1730002626778,0.000822,67220.0,67219.0,0.244167]
[1730002627826,0.000822,67220.0,67219.0,0.24714195]
[1730002628448,0.000822,67220.0,67219.0,0.32224195]
[1730002628654,0.000822,67220.0,67219.0,0.319267]
[1730002629088,0.000822,67220.0,67219.0,0.46977081]
[1730002630186,0.000822,67220.0,67219.0,0.48124]
[1730002636822,0.000822,67220.0,67219.0,0.59624]
[1730002639009,0.000822,67220.0,67219.0,0.59824]
[1730002639672,0.000822,67220.0,67219.0,0.59624]
[1730002639908,0.000822,67220.0,67219.0,0.59824]
[1730002640143,0.000822,67220.0,67219.0,0.59624]
[1730002641266,0.000822,67220.0,67219.0,0.58624]
[1730002646475,0.000822,67220.0,67219.0,0.57477081]
[1730002646706,0.000822,67220.0,67219.0,0.40427081]
[1730002651617,0.000822,67220.0,67219.0,0.40591481]
[1730002660366,0.000822,67220.0,67219.0,0.40091481]
[1730002660784,0.000822,67220.0,67219.0,0.40591481]
[1730002693773,0.000822,67220.0,67219.0,0.40091481]
[1730002694004,0.000822,67220.0,67219.0,0.40591481]
[1730002694932,0.16560487,67220.0,67219.0,0.250411]
[1730002695182,0.179922,67220.0,67219.0,0.250411]
[1730002695406,0.37632736,67220.0,67219.0,0.250411]
[1730002695874,0.37632736,67220.0,67219.0,0.150411]
[1730002695875,0.46563786,67220.0,67219.0,0.150411]
[1730002696355,0.21146689,67220.0,67219.0,0.150411]
[1730002697523,0.27842126,67220.0,67219.0,0.150411]
[1730002700265,0.21146689,67220.0,67219.0,0.150411]
[1730002704369,0.25608018,67220.0,67219.0,0.150411]
[1730002706716,0.25607544,67220.0,67219.0,0.150411]
[1730002711295,0.25606995,67220.0,67219.0,0.150411]
[1730002715818,0.25606769,67220.0,67219.0,0.150411]
[1730002720555,0.25606944,67220.0,67219.0,0.150411]
[1730002720986,0.17476944,67220.0,67219.0,0.150411]
[1730002725237,0.13016689,67220.0,67219.0,0.150411]
[1730002725445,0.17476944,67220.0,67219.0,0.150411]
[1730002728056,0.17477701,67220.0,67219.0,0.150411]
[1730002728281,0.13016689,67220.0,67219.0,0.150411]
[1730002729523,0.17477762,67220.0,67219.0,0.150411]
[1730002729762,0.13016689,67220.0,67219.0,0.150411]
[1730002730385,0.17478037,67220.0,67219.0,0.150411]
[1730002730815,0.13016689,67220.0,67219.0,0.150411]
[1730002733451,0.19707072,67220.0,67219.0,0.150411]
[1730002733869,0.13016689,67220.0,67219.0,0.150411]
[1730002734293,0.19707072,67220.0,67219.0,0.150411]
[1730002736104,0.09927072,67220.0,67219.0,0.150411]
[1730002736340,0.03236689,67220.0,67219.0,0.225611]
[1730002736575,0.03236689,67220.0,67219.0,0.22858599]
[1730002737083,0.000822,67220.0,67219.0,0.22858599]
[1730002737308,0.000822,67220.0,67219.0,0.22858598]
[1730002737725,0.03236757,67220.0,67219.0,0.22858598]
[1730002737951,0.03236757,67220.0,67219.0,0.225611]
[1730002738646,0.000822,67220.0,67219.0,0.225611]
[1730002739087,0.03236638,67220.0,67219.0,0.225611]
[1730002740454,0.07699516,67220.0,67219.0,0.225611]
[1730002742184,0.07701462,67220.0,67219.0,0.37611481]
[1730002742418,0.03236638,67220.0,67219.0,0.47395986]
[1730002747289,0.000822,67220.0,67219.0,0.47395986]
[1730002747502,0.03236008,67220.0,67219.0,0.47395986]
[1730002750123,0.000822,67220.0,67219.0,0.47395986]
[1730002752611,0.000822,67220.0,67219.0,0.39875986]
[1730002753428,0.000822,67220.0,67219.0,0.30091481]
[1730002755227,0.000822,67220.0,67219.0,0.150411]
[1730002755638,0.03236183,67220.0,67219.0,0.150411]
[1730002756511,0.0993121,67220.0,67219.0,0.150411]
[1730002756732,0.03236183,67220.0,67219.0,0.150411]
[1730002757403,0.09931277,67220.0,67219.0,0.150411]
[1730002757600,0.03236183,67220.0,67219.0,0.150411]
[1730002758040,0.09931277,67220.0,67219.0,0.150411]
[1730002759068,0.03236183,67220.0,67219.0,0.150411]
[1730002759485,0.09931277,67220.0,67219.0,0.150411]
[1730002764521,0.09931277,67220.0,67219.0,0.001644]
[1730002764522,0.19471277,67220.0,67219.0,0.001644]
[1730002764734,0.12776183,67220.0,67219.0,0.150411]
[1730002765158,0.12776183,67220.0,67219.0,0.001644]
[1730002765808,0.20986183,67220.0,67219.0,0.001644]
[1730002766028,0.37463304,67220.0,67219.0,0.001644]
[1730002774470,0.37447784,67220.0,67219.0,0.001644]
[1730002775109,0.48595794,67220.0,67219.0,0.001644]
[1730002775591,0.37447784,67220.0,67219.0,0.001644]
[1730002775850,0.48595794,67220.0,67219.0,0.001644]
[1730002776306,0.37447784,67220.0,67219.0,0.001644]
[1730002777872,0.48595794,67220.0,67219.0,0.001644]
[1730002778351,0.37447784,67220.0,67219.0,0.001644]
[1730002779024,0.37443784,67220.0,67219.0,0.001644]
[1730002779696,0.46360233,67220.0,67219.0,0.001644]
[1730002779907,0.37443784,67220.0,67219.0,0.001644]
[1730002780128,0.46360233,67220.0,67219.0,0.001644]
[1730002780354,0.37443784,67220.0,67219.0,0.001644]
[1730002780788,0.46360233,67220.0,67219.0,0.001644]
[1730002783671,0.46358006,67220.0,67219.0,0.001644]
[1730002789424,0.3744217,67220.0,67219.0,0.001644]
[1730002789856,0.4635873,67220.0,67219.0,0.001644]
[1730002790292,0.45146619,67220.0,67219.0,0.001644]
[1730002790502,0.45146619,67220.0,67219.0,0.150411]
[1730002791405,0.36230059,67220.0,67219.0,0.001644]
[1730002792788,0.19774072,67220.0,67219.0,0.001644]
[1730002792988,0.36232984,67220.0,67219.0,0.001644]
[1730002793395,0.4737976,67220.0,67219.0,0.001644]
[1730002795292,0.36232984,67220.0,67219.0,0.001644]
[1730002796520,0.4737976,67220.0,67219.0,0.001644]
[1730002799361,0.36232984,67220.0,67219.0,0.001644]
[1730002800184,0.47384907,67220.0,67219.0,0.001644]
[1730002800309,0.36232984,67220.0,67219.0,0.001644]
[1730002800934,0.47385738,67220.0,67219.0,0.001644]
[1730002801326,0.47394467,67220.0,67219.0,0.001644]
[1730002801532,0.3624184,67220.0,67219.0,0.001644]
[1730002801715,0.47395358,67220.0,67219.0,0.001644]
[1730002803887,0.3624184,67220.0,67219.0,0.001644]
[1730002804324,0.47396757,67220.0,67219.0,0.001644]
[1730002804541,0.3624184,67220.0,67219.0,0.001644]
[1730002817466,0.19774072,67220.0,67219.0,0.001644]
[1730002818345,0.3625921,67220.0,67219.0,0.001644]
[1730002827442,0.36261567,67220.0,67219.0,0.001644]
[1730002837943,0.28051567,67220.0,67219.0,0.001644]
[1730002841843,0.28052531,67220.0,67219.0,0.001644]
[1730002851116,0.28052866,67220.0,67219.0,0.001644]
[1730002855614,0.28053018,67220.0,67219.0,0.001644]
[1730002860253,0.11564072,67220.0,67219.0,0.001644]
[1730002860515,0.28053112,67220.0,67219.0,0.001644]
[1730002863132,0.28053377,67220.0,67219.0,0.001644]
[1730002863772,0.28053403,67220.0,67219.0,0.001644]
[1730002870149,0.41454256,67220.0,67219.0,0.001644]
[1730002872976,0.41454643,67220.0,67219.0,0.001644]
[1730002873718,0.28053616,67220.0,67219.0,0.001644]
[1730002874819,0.41454643,67220.0,67219.0,0.001644]
[1730002876539,0.28053616,67220.0,67219.0,0.001644]
[1730002878548,0.41454643,67220.0,67219.0,0.001644]
[1730002879629,0.28053616,67220.0,67219.0,0.001644]
[1730002880098,0.41454643,67220.0,67219.0,0.001644]
[1730002880321,0.41454016,67220.0,67219.0,0.001644]
[1730002880541,0.28053271,67220.0,67219.0,0.001644]
[1730002882012,0.41454016,67220.0,67219.0,0.001644]
[1730002882262,0.41454032,67220.0,67219.0,0.001644]
[1730002882467,0.28053279,67220.0,67219.0,0.001644]
[1730002891382,0.28052998,67220.0,67219.0,0.001644]
[1730002897366,0.41453522,67220.0,67219.0,0.001644]
[1730002900400,0.41453937,67220.0,67219.0,0.001644]
[1730002906874,0.28053227,67220.0,67219.0,0.001644]
[1730002910713,0.41453937,67220.0,67219.0,0.001644]
[1730002910915,0.28053227,67220.0,67219.0,0.001644]
[1730002911889,0.31913937,67220.0,67219.0,0.150411]
[1730002912121,0.18513227,67220.0,67219.0,0.328811]
[1730002913729,0.1318795,67220.0,67219.0,0.34062545]
[1730002914396,0.1318791,67220.0,67219.0,0.34062545]
[1730002914651,0.27438852,67220.0,67219.0,0.34062545]
[1730002914851,0.02024072,67220.0,67219.0,0.49112926]
[1730002915304,0.000822,67220.0,67219.0,0.49112926]
[1730002926282,0.000822,67220.0,67219.0,0.59112926]
[1730002926526,0.000822,67220.0,67219.0,0.62912926]
[1730002928096,0.000822,67220.0,67219.0,0.72697431]
[1730002936045,0.000822,67220.0,67219.0,0.60612926]
[1730002936508,0.000822,67220.0,67219.0,0.41272926]
[1730002936744,0.000822,67220.0,67219.0,0.250411]
[1730002939132,0.081322,67220.0,67219.0,0.250411]
[1730002939601,0.09987142,67220.0,67219.0,0.250411]
[1730002939817,0.09987142,67220.0,67219.0,0.001644]
[1730002943815,0.09987142,67220.0,67219.0,0.150411]
[1730002944755,0.01937142,67220.0,67219.0,0.150411]
[1730002946116,0.000822,67220.0,67219.0,0.150411]
[1730002947031,0.01936573,67220.0,67219.0,0.150411]
[1730002947239,0.000822,67220.0,67219.0,0.150411]
[1730002948075,0.01936573,67220.0,67219.0,0.150411]
[1730002948261,0.000822,67220.0,67219.0,0.150411]
[1730002948531,0.01936573,67220.0,67219.0,0.150411]
[1730002948739,0.000822,67220.0,67219.0,0.150411]
[1730002948947,0.01936573,67220.0,67219.0,0.150411]
[1730002949160,0.000822,67220.0,67219.0,0.150411]
[1730002949369,0.01936775,67220.0,67219.0,0.150411]
[1730002949589,0.000822,67220.0,67219.0,0.150411]
[1730002949833,0.01937225,67220.0,67219.0,0.150411]
[1730002952633,0.01937225,67220.0,67219.0,0.001644]
[1730002952859,0.01937225,67220.0,67219.0,0.150411]
[1730002977641,0.0639296,67220.0,67219.0,0.150411]
[1730002979612,0.01937225,67220.0,67219.0,0.150411]
[1730002980489,0.08620828,67220.0,67219.0,0.150411]
[1730002980918,0.08629468,67220.0,67219.0,0.150411]
[1730002981348,0.08629468,67220.0,67219.0,0.001644]
[1730002981556,0.18411974,67220.0,67219.0,0.001644]
[1730002981976,0.18411974,67220.0,67219.0,0.150411]
[1730002982611,0.10860216,67220.0,67219.0,0.150411]
[1730002982871,0.27334965,67220.0,67219.0,0.150411]
[1730002983491,0.18411974,67220.0,67219.0,0.150411]
[1730002985849,0.18411974,67220.0,67219.0,0.001644]
[1730002986086,0.37916479,67220.0,67219.0,0.001644]
[1730002986305,0.28131974,67220.0,67219.0,0.001644]
[1730002993931,0.28133136,67220.0,67219.0,0.001644]
[1730002995256,0.18413136,67220.0,67219.0,0.150411]
[1730002995475,0.29570828,67220.0,67219.0,0.150411]
[1730002995688,0.29570828,67220.0,67219.0,0.001644]
[1730002996553,0.18413136,67220.0,67219.0,0.001644]
[1730003003106,0.18410929,67220.0,67219.0,0.001644]
[1730003004657,0.13093889,67220.0,67219.0,0.001644]
[1730003004861,0.29567593,67220.0,67219.0,0.001644]
[1730003005512,0.18410929,67220.0,67219.0,0.001644]
[1730003005799,0.13093693,67220.0,67219.0,0.001644]
[1730003006026,0.29567397,67220.0,67219.0,0.001644]
[1730003007526,0.18410929,67220.0,67219.0,0.001644]
[1730003008160,0.13094077,67220.0,67219.0,0.001644]
[1730003008373,0.18410929,67220.0,67219.0,0.001644]
[1730003008585,0.1309427,67220.0,67219.0,0.001644]
[1730003008793,0.29567974,67220.0,67219.0,0.001644]
[1730003009468,0.18410929,67220.0,67219.0,0.001644]
[1730003021620,0.18416158,67220.0,67219.0,0.001644]
[1730003022183,0.18416158,67220.0,67219.0,0.150411]
[1730003022382,0.18416158,67220.0,67219.0,0.246011]
[1730003022610,0.1086511,67220.0,67219.0,0.246011]
[1730003022822,0.27344043,67220.0,67219.0,0.246011]
[1730003026343,0.27343498,67220.0,67219.0,0.246011]
[1730003026788,0.27343498,67220.0,67219.0,0.150411]
[1730003038239,0.18415556,67220.0,67219.0,0.150411]
[1730003040206,0.1841347,67220.0,67219.0,0.150411]
[1730003040867,0.27340282,67220.0,67219.0,0.150411]
[1730003041078,0.1841347,67220.0,67219.0,0.150411]
[1730003042126,0.08632273,67220.0,67219.0,0.57295986]
[1730003042339,0.01937225,67220.0,67219.0,0.57295986]
[1730003042764,0.000822,67220.0,67219.0,0.57295986]
[1730003052771,0.000822,67220.0,67219.0,0.30091481]
[1730003053638,0.000822,67220.0,67219.0,0.150411]
[1730003054094,0.01917274,67220.0,67219.0,0.150411]
[1730003054310,0.000822,67220.0,67219.0,0.150411]
[1730003054521,0.01917281,67220.0,67219.0,0.150411]
[1730003054733,0.000822,67220.0,67219.0,0.150411]
[1730003054951,0.01917274,67220.0,67219.0,0.150411]
[1730003055165,0.000822,67220.0,67219.0,0.150411]
[1730003055376,0.01917281,67220.0,67219.0,0.150411]
[1730003055579,0.000822,67220.0,67219.0,0.150411]
[1730003055807,0.01917281,67220.0,67219.0,0.150411]
[1730003056238,0.000822,67220.0,67219.0,0.150411]
[1730003056481,0.01917323,67220.0,67219.0,0.150411]
[1730003056685,0.000822,67220.0,67219.0,0.150411]
[1730003056915,0.01917372,67220.0,67219.0,0.150411]
[1730003057126,0.000822,67220.0,67219.0,0.150411]
[1730003057553,0.01917281,67220.0,67219.0,0.150411]
[1730003057739,0.000822,67220.0,67219.0,0.150411]
[1730003057951,0.01917225,67220.0,67219.0,0.150411]
[1730003062404,0.000822,67220.0,67219.0,0.150411]
[1730003062611,0.04542087,67220.0,67219.0,0.150411]
[1730003062854,0.06376966,67220.0,67219.0,0.150411]
[1730003066726,0.06378094,67220.0,67219.0,0.150411]
[1730003068648,0.01917079,67220.0,67219.0,0.150411]
[1730003077505,0.06378672,67220.0,67219.0,0.150411]
[1730003077706,0.01917079,67220.0,67219.0,0.150411]
[1730003078127,0.06378672,67220.0,67219.0,0.150411]
[1730003079018,0.01917079,67220.0,67219.0,0.150411]
[1730003079466,0.06378672,67220.0,67219.0,0.150411]
[1730003079892,0.01917079,67220.0,67219.0,0.150411]
[1730003080102,0.06378672,67220.0,67219.0,0.150411]
[1730003080937,0.01917079,67220.0,67219.0,0.150411]
[1730003082641,0.06378672,67220.0,67219.0,0.150411]
[1730003084413,0.01917079,67220.0,67219.0,0.150411]
[1730003085021,0.19447079,67220.0,67219.0,0.150411]
[1730003085435,0.26140791,67220.0,67219.0,0.150411]
[1730003087878,0.26140791,67220.0,67219.0,0.001644]
[1730003088089,0.54630134,67220.0,67219.0,0.001644]
[1730003088289,0.44845629,67220.0,67219.0,0.001644]
[1730003088527,0.35920679,67220.0,67219.0,0.001644]
[1730003089382,0.60581684,67220.0,67219.0,0.001644]
[1730003089714,0.45705184,67220.0,67219.0,0.001644]
[1730003090101,0.35920679,67220.0,67219.0,0.001644]
[1730003096167,0.47073712,67220.0,67219.0,0.001644]
[1730003096366,0.35920679,67220.0,67219.0,0.001644]
[1730003102717,0.47073866,67220.0,67219.0,0.001644]
[1730003102927,0.47068644,67220.0,67219.0,0.001644]
[1730003107551,0.19447079,67220.0,67219.0,0.001644]
[1730003107770,0.4706535,67220.0,67219.0,0.001644]
[1730003112346,0.47063002,67220.0,67219.0,0.001644]
[1730003115435,0.35912093,67220.0,67219.0,0.001644]
[1730003116965,0.47063515,67220.0,67219.0,0.001644]
[1730003118292,0.35912093,67220.0,67219.0,0.001644]
[1730003121629,0.35915534,67220.0,67219.0,0.001644]
[1730003126432,0.35919538,67220.0,67219.0,0.001644]
[1730003134119,0.49306679,67220.0,67219.0,0.001644]
[1730003135540,0.49335302,67220.0,67219.0,0.001644]
[1730003136369,0.35935328,67220.0,67219.0,0.001644]
[1730003136770,0.49335302,67220.0,67219.0,0.001644]
[1730003138276,0.19447079,67220.0,67219.0,0.001644]
[1730003138690,0.49335331,67220.0,67219.0,0.001644]
[1730003139290,0.35935344,67220.0,67219.0,0.001644]
[1730003139610,0.49335331,67220.0,67219.0,0.001644]
[1730003140468,0.3593532,67220.0,67219.0,0.001644]
[1730003140882,0.49335287,67220.0,67219.0,0.001644]
[1730003142145,0.3593532,67220.0,67219.0,0.001644]
[1730003149517,0.35935719,67220.0,67219.0,0.001644]
[1730003152892,0.18405719,67220.0,67219.0,0.150411]
[1730003153266,0.18405719,67220.0,67219.0,0.231011]
[1730003153897,0.18405719,67220.0,67219.0,0.54571279]
[1730003154118,0.01917079,67220.0,67219.0,0.47381481]
[1730003154315,0.000822,67220.0,67219.0,0.47381481]
[1730003155187,0.000822,67220.0,67219.0,0.57381481]
[1730003156474,0.000822,67220.0,67219.0,0.57881481]
[1730003157532,0.000822,67220.0,67219.0,0.59021615]
[1730003160132,0.000822,67220.0,67219.0,0.58521615]
[1730003160336,0.000822,67220.0,67219.0,0.6830612]
[1730003163425,0.000822,67220.0,67219.0,0.5907612]
[1730003165995,0.000822,67220.0,67219.0,0.42885605]
[1730003166219,0.000822,67220.0,67219.0,0.250411]
[1730003166663,0.02024294,67220.0,67219.0,0.101644]
[1730003166871,0.000822,67220.0,67219.0,0.001644]
[1730003167131,0.02024294,67220.0,67219.0,0.250411]
[1730003167343,0.000822,67220.0,67219.0,0.250411]
[1730003167543,0.02024294,67220.0,67219.0,0.250411]
[1730003167824,0.000822,67220.0,67219.0,0.250411]
[1730003168029,0.02024294,67220.0,67219.0,0.250411]
[1730003168244,0.000822,67220.0,67219.0,0.250411]
[1730003168464,0.02024245,67220.0,67219.0,0.250411]
[1730003168679,0.000822,67220.0,67219.0,0.250411]
[1730003168905,0.02024176,67220.0,67219.0,0.250411]
[1730003169120,0.000822,67220.0,67219.0,0.250411]
[1730003169363,0.02024245,67220.0,67219.0,0.250411]
[1730003169566,0.000822,67220.0,67219.0,0.250411]
[1730003169780,0.02024294,67220.0,67219.0,0.250411]
[1730003169993,0.000822,67220.0,67219.0,0.250411]
[1730003170242,0.02024294,67220.0,67219.0,0.250411]
[1730003170445,0.000822,67220.0,67219.0,0.150411]
[1730003170667,0.02024294,67220.0,67219.0,0.150411]
[1730003170846,0.000822,67220.0,67219.0,0.150411]
[1730003171060,0.02024245,67220.0,67219.0,0.150411]
[1730003171266,0.000822,67220.0,67219.0,0.150411]
[1730003171507,0.02024176,67220.0,67219.0,0.150411]
[1730003171708,0.000822,67220.0,67219.0,0.150411]
[1730003171883,0.02024245,67220.0,67219.0,0.150411]
[1730003180267,0.000822,67220.0,67219.0,0.150411]
[1730003201250,0.02033707,67220.0,67219.0,0.150411]
[1730003203400,0.06493918,67220.0,67219.0,0.150411]
[1730003203820,0.02033707,67220.0,67219.0,0.150411]
[1730003204661,0.06493918,67220.0,67219.0,0.150411]
[1730003205369,0.02033707,67220.0,67219.0,0.150411]
[1730003205587,0.0649483,67220.0,67219.0,0.150411]
[1730003206014,0.02033707,67220.0,67219.0,0.150411]
[1730003208542,0.08724024,67220.0,67219.0,0.150411]
[1730003209391,0.06495178,67220.0,67219.0,0.150411]
[1730003209594,0.02033707,67220.0,67219.0,0.150411]
[1730003209802,0.02033707,67220.0,67219.0,0.001644]
[1730003209803,0.06495433,67220.0,67219.0,0.001644]
[1730003210016,0.08724024,67220.0,67219.0,0.150411]
[1730003210453,0.02033707,67220.0,67219.0,0.150411]
[1730003210637,0.02033707,67220.0,67219.0,0.001644]
[1730003210851,0.08726697,67220.0,67219.0,0.150411]
[1730003211067,0.27425228,67220.0,67219.0,0.150411]
[1730003214066,0.27425228,67220.0,67219.0,0.001644]
[1730003214275,0.50681306,67220.0,67219.0,0.001644]
[1730003214703,0.61831834,67220.0,67219.0,0.001644]
[1730003215128,0.46955334,67220.0,67219.0,0.001644]
[1730003216232,0.61831834,67220.0,67219.0,0.001644]
[1730003216463,0.35804806,67220.0,67219.0,0.001644]
[1730003218914,0.50681306,67220.0,67219.0,0.001644]
[1730003219119,0.35804806,67220.0,67219.0,0.001644]
[1730003220349,0.50681306,67220.0,67219.0,0.001644]
[1730003220550,0.35804806,67220.0,67219.0,0.001644]
[1730003222550,0.44725088,67220.0,67219.0,0.001644]
[1730003223158,0.35804806,67220.0,67219.0,0.001644]
[1730003223383,0.50681306,67220.0,67219.0,0.001644]
[1730003223803,0.59600893,67220.0,67219.0,0.001644]
[1730003224000,0.50681306,67220.0,67219.0,0.001644]
[1730003225437,0.50672067,67220.0,67219.0,0.001644]
[1730003225610,0.61820225,67220.0,67219.0,0.001644]
[1730003229692,0.50672067,67220.0,67219.0,0.001644]
[1730003230072,0.5066834,67220.0,67219.0,0.001644]
[1730003234383,0.3579184,67220.0,67219.0,0.001644]
[1730003239518,0.35792074,67220.0,67219.0,0.001644]
[1730003244049,0.35796182,67220.0,67219.0,0.001644]
[1730003244667,0.35797886,67220.0,67219.0,0.001644]
[1730003246442,0.49178298,67220.0,67219.0,0.001644]
[1730003248623,0.35797886,67220.0,67219.0,0.001644]
[1730003249062,0.49185239,67220.0,67219.0,0.001644]
[1730003249513,0.35797886,67220.0,67219.0,0.001644]
[1730003253481,0.35810007,67220.0,67219.0,0.001644]
[1730003257847,0.50686507,67220.0,67219.0,0.001644]
[1730003260964,0.88817372,67220.0,67219.0,0.001644]
[1730003262764,0.88845007,67220.0,67219.0,0.001644]
[1730003264346,0.50694845,67220.0,67219.0,0.001644]
[1730003264759,0.73773338,67220.0,67219.0,0.001644]
[1730003264966,0.50694845,67220.0,67219.0,0.001644]
[1730003265588,0.88845007,67220.0,67219.0,0.001644]
[1730003267109,0.73773338,67220.0,67216.0,0.001644]
[1730003267344,0.54636311,67219.0,67216.0,0.001644]
[1730003267528,0.39563131,67218.0,67216.0,0.001644]
[1730003267771,0.16484638,67217.0,67216.0,0.001644]
[1730003268252,0.18433839,67217.0,67216.0,0.001644]
[1730003269336,0.41512332,67217.0,67216.0,0.001644]
[1730003269555,0.18433839,67217.0,67216.0,0.001644]
[1730003269768,0.41512332,67217.0,67216.0,0.001644]
[1730003269980,0.18433839,67217.0,67216.0,0.001644]
[1730003270198,0.41512332,67217.0,67216.0,0.001644]
[1730003270410,0.18433839,67217.0,67216.0,0.001644]
[1730003270627,0.41512332,67217.0,67216.0,0.001644]
[1730003270848,0.18433839,67217.0,67216.0,0.001644]
[1730003271073,0.41512332,67217.0,67216.0,0.001644]
[1730003271285,0.18433839,67217.0,67216.0,0.001644]
[1730003271505,0.41512332,67217.0,67216.0,0.001644]
[1730003271740,0.18433839,67217.0,67216.0,0.001644]